[Event "FIDE WYCC 2016 U16 boys"]
[Site "Khanty Mansiysk"]
[Date "2016.09.22"]
[Round "1.2"]
[White "Koziol, Kamil"]
[Black "Tabatabaei, M Amin"]
[Result "0-1"]
[ECO "E32"]
[WhiteElo "2212"]
[BlackElo "2493"]
[Annotator "Reinhold Goldau"]
[PlyCount "76"]
[EventDate "2016.09.??"]
[EventType "swiss"]
[EventRounds "11"]
[EventCountry "RUS"]
[SourceTitle "Youth Database"]
[Source "CBase R.Goldau"]
[SourceDate "2000.03.01"]
[TimeControl "40/5400+30:1800+30"]

1. d4 {[%emt 0:00:00]} Nf6 {[%emt 0:00:00]} 2. c4 {[%emt 0:00:00]} e6 {[%emt 0:
00:32]} 3. Nc3 {[%emt 0:00:00]} Bb4 {[%emt 0:00:04]} 4. Qc2 {[%emt 0:00:02]}
O-O {[%emt 0:00:38]} 5. a3 {[%emt 0:00:27]} Bxc3+ {[%emt 0:00:08]} 6. Qxc3 {
[%emt 0:00:35]} b6 {[%emt 0:00:08]} 7. Bg5 {[%emt 0:06:03]} Bb7 {[%emt 0:00:08]
} 8. f3 {[%emt 0:01:27]} d6 {[%emt 0:01:41]} 9. e4 {[%emt 0:16:58]} c5 {
[%emt 0:07:46]} 10. dxc5 {[%emt 0:32:39]} bxc5 {[%emt 0:00:30]} 11. Bd3 {
[%emt 0:01:05]} Nc6 {[%emt 0:02:38]} 12. Be3 {[%emt 0:07:17]} e5 {[%emt 0:06:
01]} 13. Ne2 {[%emt 0:03:42]} a5 {[%emt 0:02:11]} 14. b3 {[%emt 0:03:09]} Nh5 {
[%emt 0:13:52]} 15. O-O {[%emt 0:01:13]} g5 {[%emt 0:19:20]} 16. Qd2 {[%emt 0:
07:47]} h6 {[%emt 0:02:30]} 17. h4 {[%emt 0:01:37]} f6 {[%emt 0:01:14]} 18. Kf2
{[%emt 0:01:53]} Nf4 {[%emt 0:18:48]} 19. Rh1 {[%emt 0:01:43]} Kg7 {[%emt 0:08:
37]} 20. Rh2 {[%emt 0:02:43]} Rh8 {[%emt 0:05:27]} 21. Ng3 {[%emt 0:03:35]} Ne7
{[%emt 0:00:07]} 22. Rah1 {[%emt 0:00:39]} Qb6 {[%emt 0:02:14]} 23. hxg5 {
[%emt 0:01:53]} hxg5 {[%emt 0:00:28]} 24. Bxf4 {[%emt 0:03:23]} gxf4 {[%emt 0:
01:01]} 25. Nh5+ {[%emt 0:00:09]} Kf7 {[%emt 0:00:06]} 26. Nxf4 {[%emt 0:00:29]
} Rxh2 {[%emt 0:02:17]} 27. Rxh2 {[%emt 0:00:04]} exf4 {[%emt 0:00:10]} 28.
Rh7+ {[%emt 0:00:09]} Ke6 {[%emt 0:01:56]} 29. Qxf4 {[%emt 0:00:08]} Rg8 {
[%emt 0:00:11]} 30. Ke3 {[%emt 0:01:54]} Rg5 {[%emt 0:02:56]} 31. g4 {[%emt 0:
00:08]} Qxb3 {[%emt 0:00:56]} 32. Rh6 {[%emt 0:01:06]} Qb2 {[%emt 0:00:14]} 33.
Rh1 {[%emt 0:01:40]} Qd4+ {[%emt 0:00:56]} 34. Ke2 {[%emt 0:00:15]} Qb2+ {
[%emt 0:00:00]} 35. Ke3 {[%emt 0:00:01]} Ba6 {[%emt 0:00:59]} 36. Rd1 {[%emt 0:
01:31]} Ng6 {[%emt 0:00:41]} 37. Qg3 {[%emt 0:00:32]} Ne5 {[%emt 0:00:56]} 38.
Be2 {[%emt 0:00:26]} Bxc4 {[%emt 0:00:00] Kd4} 0-1

[Event "FIDE WYCC 2016 U16 boys"]
[Site "Khanty Mansiysk"]
[Date "2016.09.22"]
[Round "1.3"]
[White "Martirosyan, Haik M"]
[Black "Tifferet, Shaked"]
[Result "1-0"]
[ECO "D70"]
[WhiteElo "2470"]
[BlackElo "2220"]
[Annotator "Reinhold Goldau"]
[PlyCount "77"]
[EventDate "2016.09.??"]
[EventType "swiss"]
[EventRounds "11"]
[EventCountry "RUS"]
[SourceTitle "Youth Database"]
[Source "CBase R.Goldau"]
[SourceDate "2000.03.01"]
[TimeControl "40/5400+30:1800+30"]

1. d4 {[%emt 0:00:00]} Nf6 {[%emt 0:00:00]} 2. c4 {[%emt 0:00:00]} g6 {[%emt 0:
00:00]} 3. f3 {[%emt 0:00:24]} d5 {[%emt 0:04:45]} 4. cxd5 {[%emt 0:00:10]} c6
{[%emt 0:00:04]} 5. e4 {[%emt 0:01:36]} cxd5 {[%emt 0:00:11]} 6. e5 {[%emt 0:
00:17]} Nfd7 {[%emt 0:02:22]} 7. Nc3 {[%emt 0:00:30]} Nb6 {[%emt 0:01:09]} 8.
Bd3 {[%emt 0:10:01]} Bg7 {[%emt 0:05:43]} 9. Nge2 {[%emt 0:00:38]} O-O {
[%emt 0:00:52]} 10. O-O {[%emt 0:02:44]} Nc6 {[%emt 0:00:23]} 11. h3 {[%emt 0:
04:26]} f6 {[%emt 0:18:46]} 12. f4 {[%emt 0:00:11]} Be6 {[%emt 0:01:00]} 13. f5
{[%emt 0:18:59]} Bxf5 {[%emt 0:06:18]} 14. Rxf5 {[%emt 0:17:09]} gxf5 {[%emt 0:
00:25]} 15. e6 {[%emt 0:00:04]} Nc4 {[%emt 0:12:24]} 16. Bxf5 {[%emt 0:04:51]}
Nd6 {[%emt 0:03:48]} 17. Qd3 {[%emt 0:00:41]} Nxf5 {[%emt 0:08:07]} 18. Qxf5 {
[%emt 0:00:03]} Qe8 {[%emt 0:01:14]} 19. Be3 {[%emt 0:03:35]} Qg6 {[%emt 0:02:
30]} 20. g4 {[%emt 0:00:56]} Rfd8 {[%emt 0:08:20]} 21. Rf1 {[%emt 0:04:44]} Kh8
{[%emt 0:03:06]} 22. Kh2 {[%emt 0:02:01]} Rac8 {[%emt 0:01:22]} 23. h4 {
[%emt 0:02:15]} Ne5 {[%emt 0:05:03]} 24. dxe5 {[%emt 0:06:59]} fxe5 {[%emt 0:
00:14]} 25. Bg5 {[%emt 0:00:15]} d4 {[%emt 0:04:47]} 26. Ne4 {[%emt 0:03:30]}
Rc2 {[%emt 0:00:32]} 27. Bd2 {[%emt 0:00:17]} Rdc8 {[%emt 0:06:02]} 28. N2g3 {
[%emt 0:04:32]} Qh6 {[%emt 0:01:45]} 29. Kh3 {[%emt 0:01:09]} Qg6 {[%emt 0:01:
10]} 30. h5 {[%emt 0:00:15]} Qxf5 {[%emt 0:00:31]} 31. Nxf5 {[%emt 0:01:46]}
Bf8 {[%emt 0:00:48]} 32. Bg5 {[%emt 0:01:14]} Re2 {[%emt 0:01:18]} 33. Neg3 {
[%emt 0:01:00]} Rxb2 {[%emt 0:00:02]} 34. Nxe7 {[%emt 0:00:13]} Bxe7 {[%emt 0:
00:47]} 35. Bxe7 {[%emt 0:00:07]} Kg8 {[%emt 0:00:45]} 36. Nf5 {[%emt 0:00:31]}
d3 {[%emt 0:00:54]} 37. Kh4 {[%emt 0:02:11]} h6 {[%emt 0:00:32]} 38. Nxh6+ {
[%emt 0:00:14]} Kh8 {[%emt 0:00:05]} 39. Rf7 {[%emt 0:00:35]} 1-0

[Event "FIDE WYCC 2016 U16 boys"]
[Site "Khanty Mansiysk"]
[Date "2016.09.22"]
[Round "1.4"]
[White "Nguyen, Dang Hong Phuc"]
[Black "Moroni, Luca Jr"]
[Result "0-1"]
[ECO "E12"]
[WhiteElo "2209"]
[BlackElo "2459"]
[Annotator "Reinhold Goldau"]
[PlyCount "100"]
[EventDate "2016.09.??"]
[EventType "swiss"]
[EventRounds "11"]
[EventCountry "RUS"]
[SourceTitle "Youth Database"]
[Source "CBase R.Goldau"]
[SourceDate "2000.03.01"]
[TimeControl "40/5400+30:1800+30"]

1. d4 {[%emt 0:00:00]} Nf6 {[%emt 0:00:00]} 2. Nf3 {[%emt 0:00:00]} e6 {
[%emt 0:00:00]} 3. c4 {[%emt 0:00:00]} b6 {[%emt 0:00:00]} 4. a3 {[%emt 0:00:
00]} Ba6 {[%emt 0:00:03]} 5. Qc2 {[%emt 0:00:00]} Bb7 {[%emt 0:00:10]} 6. Nc3 {
[%emt 0:00:00]} c5 {[%emt 0:00:11]} 7. dxc5 {[%emt 0:00:00]} bxc5 {[%emt 0:00:
07]} 8. Bg5 {[%emt 0:00:24]} h6 {[%emt 0:03:39]} 9. Bh4 {[%emt 0:05:12]} Be7 {
[%emt 0:03:38]} 10. e3 {[%emt 0:00:15]} O-O {[%emt 0:02:28]} 11. Be2 {[%emt 0:
02:06]} d6 {[%emt 0:04:24]} 12. O-O {[%emt 0:00:36]} Nh5 {[%emt 0:05:15]} 13.
Bxe7 {[%emt 0:20:46]} Qxe7 {[%emt 0:00:02]} 14. Nd2 {[%emt 0:00:59]} Nf6 {
[%emt 0:01:29]} 15. Rfd1 {[%emt 0:03:26]} Nc6 {[%emt 0:07:09]} 16. Rab1 {
[%emt 0:12:48]} Rfc8 {[%emt 0:14:53]} 17. h3 {[%emt 0:03:51]} Rab8 {[%emt 0:01:
59]} 18. Nb3 {[%emt 0:14:49]} Ba8 {[%emt 0:07:06]} 19. Bf3 {[%emt 0:02:34]} Nd7
{[%emt 0:10:07]} 20. Nd2 {[%emt 0:07:23]} Nde5 {[%emt 0:06:06]} 21. Be2 {
[%emt 0:00:48]} Na5 {[%emt 0:05:44]} 22. Bf1 {[%emt 0:04:06]} f5 {[%emt 0:05:
13]} 23. f4 {[%emt 0:06:22]} Nd7 {[%emt 0:02:40]} 24. b4 {[%emt 0:01:27]} cxb4
{[%emt 0:02:15]} 25. axb4 {[%emt 0:00:02]} Nc6 {[%emt 0:00:05]} 26. b5 {
[%emt 0:01:11]} Nd8 {[%emt 0:00:12]} 27. Qa2 {[%emt 0:02:05]} Nc5 {[%emt 0:01:
43]} 28. Nb3 {[%emt 0:01:03]} Nf7 {[%emt 0:02:09]} 29. Nxc5 {[%emt 0:00:29]}
Rxc5 {[%emt 0:01:13]} 30. Ra1 {[%emt 0:03:01]} Rc7 {[%emt 0:01:01]} 31. Qd2 {
[%emt 0:01:00]} g5 {[%emt 0:02:41]} 32. Bd3 {[%emt 0:00:51]} gxf4 {[%emt 0:02:
44]} 33. exf4 {[%emt 0:00:01]} Qf6 {[%emt 0:01:24]} 34. Na4 {[%emt 0:00:18]}
Kh8 {[%emt 0:01:42]} 35. Rac1 {[%emt 0:02:19]} Rg8 {[%emt 0:02:03]} 36. Bf1 {
[%emt 0:00:17]} Qh4 {[%emt 0:00:59]} 37. Rc3 {[%emt 0:00:48]} e5 {[%emt 0:01:
53]} 38. Qf2 {[%emt 0:01:19]} Qxf4 {[%emt 0:01:07]} 39. Qxf4 {[%emt 0:02:42]}
exf4 {[%emt 0:00:02]} 40. c5 {[%emt 0:00:00]} dxc5 {[%emt 0:00:00]} 41. Kh2 {
[%emt 0:03:56]} f3 {[%emt 0:11:14]} 42. gxf3 {[%emt 0:00:33]} Ne5 {[%emt 0:00:
32]} 43. Bg2 {[%emt 0:01:37]} c4 {[%emt 0:01:26]} 44. Rd2 {[%emt 0:08:26]} f4 {
[%emt 0:05:18]} 45. b6 {[%emt 0:03:19]} axb6 {[%emt 0:05:26]} 46. Nxb6 {
[%emt 0:00:02]} Bb7 {[%emt 0:00:11]} 47. Rd4 {[%emt 0:01:59]} Rcg7 {[%emt 0:01:
05]} 48. Bh1 {[%emt 0:01:47]} Nd3 {[%emt 0:07:57]} 49. Rdxc4 {[%emt 0:05:41]}
Nf2 {[%emt 0:00:52]} 50. Rc7 {[%emt 0:00:00]} Rg3 {[%emt 0:00:44]} 0-1

[Event "FIDE WYCC 2016 U16 boys"]
[Site "Khanty Mansiysk"]
[Date "2016.09.24"]
[Round "3.1"]
[White "Kevlishvili, Robby"]
[Black "Tabatabaei, M Amin"]
[Result "0-1"]
[ECO "B90"]
[WhiteElo "2402"]
[BlackElo "2493"]
[Annotator "Reinhold Goldau"]
[PlyCount "100"]
[EventDate "2016.09.??"]
[EventType "swiss"]
[EventRounds "11"]
[EventCountry "RUS"]
[SourceTitle "Youth Database"]
[Source "CBase R.Goldau"]
[SourceDate "2000.03.01"]
[TimeControl "40/5400+30:1800+30"]

1. e4 {[%emt 0:00:00]} c5 {[%emt 0:00:53]} 2. Nf3 {[%emt 0:00:00]} d6 {[%emt 0:
00:06]} 3. d4 {[%emt 0:00:00]} cxd4 {[%emt 0:00:04]} 4. Nxd4 {[%emt 0:00:00]}
Nf6 {[%emt 0:00:06]} 5. Nc3 {[%emt 0:00:00]} a6 {[%emt 0:00:05]} 6. Be3 {
[%emt 0:00:05]} e5 {[%emt 0:00:15]} 7. Nb3 {[%emt 0:00:09]} Be6 {[%emt 0:00:08]
} 8. f3 {[%emt 0:00:10]} Be7 {[%emt 0:00:39]} 9. Qd2 {[%emt 0:00:23]} O-O {
[%emt 0:00:08]} 10. O-O-O {[%emt 0:00:09]} Nbd7 {[%emt 0:00:08]} 11. g4 {
[%emt 0:00:54]} b5 {[%emt 0:00:06]} 12. g5 {[%emt 0:00:34]} Nh5 {[%emt 0:00:16]
} 13. Nd5 {[%emt 0:11:41]} Bxd5 {[%emt 0:00:19]} 14. exd5 {[%emt 0:00:07]} f5 {
[%emt 0:00:07]} 15. h4 {[%emt 0:11:39]} Ng3 {[%emt 0:29:38]} 16. Rg1 {[%emt 0:
02:20]} Nxf1 {[%emt 0:00:44]} 17. Rgxf1 {[%emt 0:04:16]} a5 {[%emt 0:01:09]}
18. Kb1 {[%emt 0:01:17]} b4 {[%emt 0:23:55]} 19. f4 {[%emt 0:05:58]} a4 {
[%emt 0:04:25]} 20. Nc1 {[%emt 0:00:15]} Qa5 {[%emt 0:00:16]} 21. Nd3 {[%emt 0:
11:21]} a3 {[%emt 0:10:07]} 22. b3 {[%emt 0:13:18]} Rab8 {[%emt 0:00:09]} 23.
Qe1 {[%emt 0:00:48]} e4 {[%emt 0:02:02]} 24. Nc1 {[%emt 0:00:10]} Bd8 {[%emt 0:
01:11]} 25. Rd4 {[%emt 0:16:17]} Bb6 {[%emt 0:04:33]} 26. Rxb4 {[%emt 0:01:12]}
Qxd5 {[%emt 0:00:09]} 27. Bxb6 {[%emt 0:00:54]} Nxb6 {[%emt 0:00:22]} 28. Ne2 {
[%emt 0:05:07]} Rfc8 {[%emt 0:06:08]} 29. Qc1 {[%emt 0:03:56]} Qc5 {[%emt 0:02:
59]} 30. Rd4 {[%emt 0:00:33]} Nc4 {[%emt 0:05:49]} 31. Ka1 {[%emt 0:03:10]} Nb2
{[%emt 0:01:13]} 32. c4 {[%emt 0:01:29]} d5 {[%emt 0:03:22]} 33. Rxd5 {[%emt 0:
02:35]} Qxd5 {[%emt 0:00:11]} 34. cxd5 {[%emt 0:00:05]} Rxc1+ {[%emt 0:00:05]}
35. Rxc1 {[%emt 0:00:03]} Nd3 {[%emt 0:01:53]} 36. Rc4 {[%emt 0:00:58]} Rd8 {
[%emt 0:00:06]} 37. Rd4 {[%emt 0:00:16]} Ne1 {[%emt 0:00:35]} 38. Kb1 {[%emt 0:
03:09]} Nf3 {[%emt 0:00:10]} 39. Rd1 {[%emt 0:00:14]} Nxh4 {[%emt 0:00:07]} 40.
b4 {[%emt 0:00:00]} Ng2 {[%emt 0:00:00]} 41. Rd4 {[%emt 0:04:11]} Ne3 {[%emt 0:
05:19]} 42. Nc3 {[%emt 0:01:24]} Ng2 {[%emt 0:01:34]} 43. Ne2 {[%emt 0:01:39]}
Kf7 {[%emt 0:05:17]} 44. Kc1 {[%emt 0:02:13]} h5 {[%emt 0:02:08]} 45. gxh6 {
[%emt 0:01:12]} gxh6 {[%emt 0:00:02]} 46. Ng3 {[%emt 0:03:03]} Nxf4 {[%emt 0:
01:48]} 47. Kc2 {[%emt 0:01:12]} Kf6 {[%emt 0:01:46]} 48. Kb3 {[%emt 0:00:42]}
Ke5 {[%emt 0:01:03]} 49. Rd1 {[%emt 0:00:15]} Rxd5 {[%emt 0:00:08]} 50. Rxd5+ {
[%emt 0:00:06]} Nxd5 {[%emt 0:00:02]} 0-1

[Event "FIDE WYCC 2016 U16 boys"]
[Site "Khanty Mansiysk"]
[Date "2016.09.24"]
[Round "3.2"]
[White "Martirosyan, Haik M"]
[Black "Saydaliev, Saidakbar"]
[Result "1-0"]
[ECO "E32"]
[WhiteElo "2470"]
[BlackElo "2403"]
[Annotator "Reinhold Goldau"]
[PlyCount "89"]
[EventDate "2016.09.??"]
[EventType "swiss"]
[EventRounds "11"]
[EventCountry "RUS"]
[SourceTitle "Youth Database"]
[Source "CBase R.Goldau"]
[SourceDate "2000.03.01"]
[TimeControl "40/5400+30:1800+30"]

1. d4 {[%emt 0:00:00]} Nf6 {[%emt 0:00:00]} 2. c4 {[%emt 0:00:00]} e6 {[%emt 0:
00:00]} 3. Nc3 {[%emt 0:00:06]} Bb4 {[%emt 0:00:00]} 4. Qc2 {[%emt 0:00:19]}
O-O {[%emt 0:00:18]} 5. a3 {[%emt 0:00:05]} Bxc3+ {[%emt 0:00:07]} 6. Qxc3 {
[%emt 0:00:03]} d6 {[%emt 0:01:09]} 7. Bg5 {[%emt 0:00:21]} Nbd7 {[%emt 0:00:
09]} 8. e3 {[%emt 0:02:23]} b6 {[%emt 0:00:10]} 9. Ne2 {[%emt 0:01:15]} c5 {
[%emt 0:00:26]} 10. dxc5 {[%emt 0:01:37]} dxc5 {[%emt 0:13:23]} 11. Qc2 {
[%emt 0:00:56]} Bb7 {[%emt 0:03:04]} 12. Nc3 {[%emt 0:00:13]} Qe7 {[%emt 0:01:
44]} 13. f3 {[%emt 0:01:40]} h6 {[%emt 0:11:09]} 14. Bh4 {[%emt 0:00:15]} Rfd8
{[%emt 0:02:02]} 15. Be2 {[%emt 0:01:59]} Nf8 {[%emt 0:06:15]} 16. O-O {
[%emt 0:02:35]} Rd7 {[%emt 0:01:19]} 17. Rfd1 {[%emt 0:05:57]} Rad8 {[%emt 0:
01:21]} 18. Bd3 {[%emt 0:04:05]} Bc6 {[%emt 0:12:58]} 19. Rd2 {[%emt 0:01:32]}
e5 {[%emt 0:00:43]} 20. Rad1 {[%emt 0:12:10]} e4 {[%emt 0:03:08]} 21. fxe4 {
[%emt 0:12:09]} g5 {[%emt 0:04:02]} 22. Be1 {[%emt 0:05:24]} Ng4 {[%emt 0:09:
14]} 23. Re2 {[%emt 0:01:09]} Ne5 {[%emt 0:02:46]} 24. Nd5 {[%emt 0:00:28]} Qe6
{[%emt 0:00:10]} 25. Bc3 {[%emt 0:01:35]} Nh7 {[%emt 0:02:20]} 26. Bxe5 {
[%emt 0:05:40]} Qxe5 {[%emt 0:00:01]} 27. Rf1 {[%emt 0:00:07]} Re8 {[%emt 0:02:
07]} 28. Ref2 {[%emt 0:03:53]} Kg7 {[%emt 0:12:47]} 29. Rf5 {[%emt 0:00:30]}
Qb8 {[%emt 0:01:26]} 30. Qc3+ {[%emt 0:00:57]} Kg8 {[%emt 0:00:34]} 31. e5 {
[%emt 0:01:49]} Re6 {[%emt 0:00:24]} 32. Be2 {[%emt 0:01:53]} Qb7 {[%emt 0:05:
56]} 33. e4 {[%emt 0:03:52]} Kg7 {[%emt 0:02:59]} 34. Bh5 {[%emt 0:00:24]} Nf8
{[%emt 0:00:11]} 35. Rxf7+ {[%emt 0:01:11]} Rxf7 {[%emt 0:00:01]} 36. Rxf7+ {
[%emt 0:00:08]} Qxf7 {[%emt 0:00:05]} 37. Bxf7 {[%emt 0:00:05]} Kxf7 {[%emt 0:
00:02]} 38. Qf3+ {[%emt 0:00:11]} Kg7 {[%emt 0:00:40]} 39. Ne7 {[%emt 0:02:59]}
Bxe4 {[%emt 0:01:55]} 40. Nf5+ {[%emt 0:00:00]} Bxf5 {[%emt 0:00:00]} 41. Qxf5
{[%emt 0:00:18]} a5 {[%emt 0:02:15]} 42. Kf2 {[%emt 0:00:37]} Kg8 {[%emt 0:08:
37]} 43. Ke3 {[%emt 0:00:45]} Re7 {[%emt 0:00:06]} 44. g3 {[%emt 0:00:46]} Nd7
{[%emt 0:00:36]} 45. Qg6+ {[%emt 0:00:15]} 1-0

[Event "FIDE WYCC 2016 U16 boys"]
[Site "Khanty Mansiysk"]
[Date "2016.09.24"]
[Round "3.3"]
[White "Triapishko, Olexandr"]
[Black "Elistratov, Semen"]
[Result "1/2-1/2"]
[ECO "D02"]
[WhiteElo "2458"]
[BlackElo "2371"]
[Annotator "Reinhold Goldau"]
[PlyCount "82"]
[EventDate "2016.09.??"]
[EventType "swiss"]
[EventRounds "11"]
[EventCountry "RUS"]
[SourceTitle "Youth Database"]
[Source "CBase R.Goldau"]
[SourceDate "2000.03.01"]
[TimeControl "40/5400+30:1800+30"]

1. Nf3 {[%emt 0:00:00]} d5 {[%emt 0:00:00]} 2. g3 {[%emt 0:00:00]} g6 {[%emt 0:
00:00]} 3. Bg2 {[%emt 0:00:23]} Bg7 {[%emt 0:00:00]} 4. d4 {[%emt 0:00:38]} Nf6
{[%emt 0:00:02]} 5. O-O {[%emt 0:00:28]} O-O {[%emt 0:00:07]} 6. c3 {[%emt 0:
00:29]} Nbd7 {[%emt 0:00:36]} 7. Bf4 {[%emt 0:04:57]} c5 {[%emt 0:03:04]} 8. a4
{[%emt 0:07:38]} a5 {[%emt 0:08:33]} 9. Na3 {[%emt 0:01:34]} b6 {[%emt 0:10:48]
} 10. Ne5 {[%emt 0:05:06]} Bb7 {[%emt 0:02:28]} 11. Nb5 {[%emt 0:09:03]} Nxe5 {
[%emt 0:14:35]} 12. dxe5 {[%emt 0:03:23]} Ne8 {[%emt 0:20:03]} 13. c4 {[%emt 0:
02:47]} e6 {[%emt 0:00:13]} 14. Qd2 {[%emt 0:01:46]} Qe7 {[%emt 0:02:34]} 15.
cxd5 {[%emt 0:09:07]} exd5 {[%emt 0:02:21]} 16. Bxd5 {[%emt 0:02:16]} Rd8 {
[%emt 0:02:05]} 17. Bg5 {[%emt 0:01:19]} Qxe5 {[%emt 0:03:43]} 18. Bxd8 {
[%emt 0:00:19]} Bxd5 {[%emt 0:00:02]} 19. Nc3 {[%emt 0:06:35]} Bc6 {[%emt 0:02:
28]} 20. Rad1 {[%emt 0:09:41]} Qe6 {[%emt 0:02:53]} 21. Qe3 {[%emt 0:09:06]}
Qh3 {[%emt 0:02:31]} 22. f3 {[%emt 0:00:34]} Nf6 {[%emt 0:02:35]} 23. Bxf6 {
[%emt 0:03:12]} Bxf6 {[%emt 0:00:05]} 24. Qf4 {[%emt 0:05:39]} Bg7 {[%emt 0:01:
34]} 25. Qd6 {[%emt 0:01:26]} Rc8 {[%emt 0:02:12]} 26. Nb5 {[%emt 0:05:05]}
Bxb5 {[%emt 0:04:30]} 27. axb5 {[%emt 0:00:06]} Bd4+ {[%emt 0:00:23]} 28. Rxd4
{[%emt 0:05:48]} cxd4 {[%emt 0:00:03]} 29. g4 {[%emt 0:00:26]} Re8 {[%emt 0:04:
53]} 30. Rf2 {[%emt 0:00:54]} Rc8 {[%emt 0:01:43]} 31. Rf1 {[%emt 0:01:29]} Re8
{[%emt 0:00:47]} 32. Rf2 {[%emt 0:01:27]} Rc8 {[%emt 0:02:21]} 33. Rf1 {
[%emt 0:00:13]} Re8 {[%emt 0:00:22]} 34. Rf2 {[%emt 0:00:07]} Rc8 {[%emt 0:00:
29]} 35. Rf1 {[%emt 0:00:06]} Re8 {[%emt 0:00:05]} 36. Rf2 {[%emt 0:00:04]} Rc8
{[%emt 0:00:03]} 37. Rf1 {[%emt 0:00:06]} Re8 {[%emt 0:00:02]} 38. Rf2 {
[%emt 0:00:07]} Rc8 {[%emt 0:00:11]} 39. Rf1 {[%emt 0:00:03]} Re8 {[%emt 0:00:
02]} 40. Rf2 {[%emt 0:00:00]} Rc8 {[%emt 0:00:00]} 41. Rf1 {[%emt 0:00:13]} Re8
{[%emt 0:00:03]} 1/2-1/2

[Event "FIDE WYCC 2016 U16 boys"]
[Site "Khanty Mansiysk"]
[Date "2016.09.24"]
[Round "3.4"]
[White "Urban, Konstantin"]
[Black "Fawzy, Adham"]
[Result "1-0"]
[ECO "B32"]
[WhiteElo "2361"]
[BlackElo "2451"]
[Annotator "Reinhold Goldau"]
[PlyCount "81"]
[EventDate "2016.09.??"]
[EventType "swiss"]
[EventRounds "11"]
[EventCountry "RUS"]
[SourceTitle "Youth Database"]
[Source "CBase R.Goldau"]
[SourceDate "2000.03.01"]
[TimeControl "40/5400+30:1800+30"]

1. e4 {[%emt 0:00:00]} c5 {[%emt 0:00:00]} 2. Nf3 {[%emt 0:00:00]} Nc6 {
[%emt 0:00:00]} 3. d4 {[%emt 0:00:00]} cxd4 {[%emt 0:00:00]} 4. Nxd4 {[%emt 0:
00:00]} e5 {[%emt 0:00:03]} 5. Nb5 {[%emt 0:00:18]} d6 {[%emt 0:00:06]} 6. N1c3
{[%emt 0:00:12]} a6 {[%emt 0:00:11]} 7. Na3 {[%emt 0:00:06]} b5 {[%emt 0:00:02]
} 8. Nd5 {[%emt 0:00:15]} Nce7 {[%emt 0:00:02]} 9. c4 {[%emt 0:00:22]} Nxd5 {
[%emt 0:00:02]} 10. exd5 {[%emt 0:00:25]} bxc4 {[%emt 0:00:11]} 11. Nxc4 {
[%emt 0:00:07]} Nf6 {[%emt 0:00:53]} 12. Be3 {[%emt 0:00:21]} Rb8 {[%emt 0:00:
12]} 13. Be2 {[%emt 0:00:15]} Be7 {[%emt 0:00:24]} 14. a4 {[%emt 0:00:18]} O-O
{[%emt 0:00:33]} 15. O-O {[%emt 0:00:19]} Bb7 {[%emt 0:00:39]} 16. Nb6 {
[%emt 0:00:13]} Nd7 {[%emt 0:00:03]} 17. a5 {[%emt 0:00:09]} f5 {[%emt 0:00:34]
} 18. f3 {[%emt 0:00:21]} Nf6 {[%emt 0:06:49]} 19. Bc4 {[%emt 0:11:40]} Qe8 {
[%emt 0:04:37]} 20. Qe2 {[%emt 0:11:50]} Bd8 {[%emt 0:02:25]} 21. Rad1 {
[%emt 0:23:45]} Qf7 {[%emt 0:14:56]} 22. Bxa6 {[%emt 0:08:35]} Bxb6 {[%emt 0:
07:07]} 23. Bxb6 {[%emt 0:00:11]} Bxa6 {[%emt 0:04:18]} 24. Qxa6 {[%emt 0:00:
02]} Nxd5 {[%emt 0:00:20]} 25. Bf2 {[%emt 0:00:42]} Rxb2 {[%emt 0:08:57]} 26.
Qxd6 {[%emt 0:01:44]} Nc3 {[%emt 0:00:20]} 27. Rd2 {[%emt 0:10:49]} Rb5 {
[%emt 0:05:22]} 28. Qc6 {[%emt 0:06:59]} Qb3 {[%emt 0:15:43]} 29. a6 {[%emt 0:
02:28]} Ra5 {[%emt 0:06:39]} 30. Rd7 {[%emt 0:02:46]} Kh8 {[%emt 0:06:47]} 31.
Qc7 {[%emt 0:07:26]} Ne2+ {[%emt 0:12:06]} 32. Kh1 {[%emt 0:00:01]} Qc3 {
[%emt 0:00:15]} 33. Rd8 {[%emt 0:06:56]} Kg8 {[%emt 0:03:23]} 34. Rxf8+ {
[%emt 0:01:02]} Kxf8 {[%emt 0:00:01]} 35. Qd8+ {[%emt 0:00:12]} Kf7 {[%emt 0:
00:01]} 36. Qd7+ {[%emt 0:00:26]} Kg6 {[%emt 0:01:44]} 37. Qe6+ {[%emt 0:03:38]
} Kg5 {[%emt 0:00:53]} 38. Be1 {[%emt 0:00:55]} Qa1 {[%emt 0:01:39]} 39. h4+ {
[%emt 0:00:55]} Kf4 {[%emt 0:00:23]} 40. Qc4+ {[%emt 0:00:00]} e4 {[%emt 0:00:
00]} 41. Qxe2 {[%emt 0:01:55]} 1-0

[Event "FIDE WYCC 2016 U16 girls"]
[Site "Khanty Mansiysk"]
[Date "2016.09.22"]
[Round "1.1"]
[White "Shuvalova, Polina"]
[Black "Bauyrzhan, Arnash"]
[Result "1/2-1/2"]
[ECO "A14"]
[WhiteElo "2393"]
[BlackElo "1904"]
[Annotator "Reinhold Goldau"]
[PlyCount "70"]
[EventDate "2016.09.??"]
[EventType "swiss"]
[EventRounds "11"]
[EventCountry "RUS"]
[SourceTitle "Youth Database"]
[Source "CBase R.Goldau"]
[SourceDate "2000.03.01"]
[TimeControl "40/5400+30:1800+30"]

1. Nf3 {[%emt 0:00:00]} d5 {[%emt 0:00:00]} 2. g3 {[%emt 0:00:00]} Nf6 {
[%emt 0:00:49]} 3. Bg2 {[%emt 0:00:00]} e6 {[%emt 0:02:30]} 4. O-O {[%emt 0:00:
00]} Be7 {[%emt 0:00:28]} 5. c4 {[%emt 0:00:00]} O-O {[%emt 0:01:23]} 6. b3 {
[%emt 0:00:02]} c5 {[%emt 0:05:34]} 7. Bb2 {[%emt 0:00:11]} Nc6 {[%emt 0:01:29]
} 8. e3 {[%emt 0:00:12]} Qb6 {[%emt 0:12:08]} 9. cxd5 {[%emt 0:03:21]} exd5 {
[%emt 0:00:25]} 10. Nc3 {[%emt 0:07:35]} Bf5 {[%emt 0:06:03]} 11. d4 {[%emt 0:
05:10]} cxd4 {[%emt 0:16:25]} 12. Nxd4 {[%emt 0:09:08]} Nxd4 {[%emt 0:00:42]}
13. Na4 {[%emt 0:00:32]} Qa6 {[%emt 0:05:21]} 14. Bxd4 {[%emt 0:02:31]} Rac8 {
[%emt 0:03:53]} 15. Nc3 {[%emt 0:01:06]} Bd3 {[%emt 0:07:31]} 16. Re1 {[%emt 0:
02:13]} Rfd8 {[%emt 0:01:21]} 17. Nxd5 {[%emt 0:08:14]} Nxd5 {[%emt 0:11:32]}
18. Bxd5 {[%emt 0:00:46]} Rxd5 {[%emt 0:03:06]} 19. Qg4 {[%emt 0:00:41]} Rxd4 {
[%emt 0:00:19]} 20. exd4 {[%emt 0:00:58]} f5 {[%emt 0:00:29]} 21. Qf4 {[%emt 0:
02:25]} Bb4 {[%emt 0:04:12]} 22. Rec1 {[%emt 0:08:21]} Re8 {[%emt 0:02:50]} 23.
d5 {[%emt 0:02:04]} Bd6 {[%emt 0:00:28]} 24. Qd2 {[%emt 0:02:34]} Be4 {[%emt 0:
06:11]} 25. Rc4 {[%emt 0:05:19]} h6 {[%emt 0:01:12]} 26. Re1 {[%emt 0:13:42]}
Re5 {[%emt 0:01:31]} 27. h4 {[%emt 0:09:31]} Rxd5 {[%emt 0:01:01]} 28. Rd4 {
[%emt 0:00:13]} Rxd4 {[%emt 0:00:55]} 29. Qxd4 {[%emt 0:00:02]} Qc6 {[%emt 0:
00:57]} 30. Kh2 {[%emt 0:01:35]} Kh7 {[%emt 0:00:43]} 31. h5 {[%emt 0:01:20]}
Qe8 {[%emt 0:01:30]} 32. Rxe4 {[%emt 0:02:05]} fxe4 {[%emt 0:00:28]} 33. Qxd6 {
[%emt 0:00:07]} Qxh5+ {[%emt 0:00:04]} 34. Kg1 {[%emt 0:00:06]} Qf3 {[%emt 0:
00:44]} 35. Qd5 {[%emt 0:00:20]} b6 {[%emt 0:00:54]} 1/2-1/2